fUST/lending_fUST_20250327
["ID","MTS","AMOUNT","RATE_DAILY","PERIOD"]
[356741004,1743081046686,-500.0,0.00024673,2]
[356741005,1743081046695,-500.0,0.00024673,2]
[356741006,1743081046705,-500.0,0.00024673,2]
[356741007,1743081046715,-500.0,0.00024673,2]
[356741008,1743081046725,-418.86572967,0.00024673,2]
[356741009,1743081046735,-500.0,0.00024673,2]
[356741010,1743081046746,-403.13319834,0.00024678,2]
[356741011,1743081046756,-198.86987886,0.00024681,2]
[356741012,1743081046765,-5000.0,0.00024682,2]
[356741013,1743081046775,-151.0,0.00024682,2]
[356741014,1743081046784,-600.0,0.00024682,2]
[356741015,1743081046794,-356.77102646,0.00024696,2]
[356741016,1743081046803,-143895.57930731,0.00024697,2]
[356741082,1743082238472,-170.099014,0.00010959,2]
[356741083,1743082238483,-800.0,0.0002,2]
[356741084,1743082238492,-7000.0,0.00021096,3]
[356741085,1743082238502,-800.0,0.00022,3]
[356741086,1743082238512,-1012.94912578,0.000229,4]
[356741087,1743082238524,-300.0,0.00022999,2]
[356741088,1743082238533,-810.0,0.00023,4]
[356741089,1743082238543,-1012.94912561,0.00023486,4]
[356741090,1743082238655,-263.583165,0.00023594,2]
[356741091,1743082238675,-234.30986082,0.00023685,2]
[356741094,1743082238730,-880.76683708,0.00023685,2]
[356741095,1743082238739,-834.95724862,0.00023866,2]
[356741096,1743082238749,-1845.99112157,0.000239,2]
[356741097,1743082238760,-846.13681465,0.000239,2]
[356741098,1743082238774,-2307.87206378,0.000239,2]
[356741099,1743082238783,-150.17,0.00024,2]
[356741100,1743082238792,-150.17,0.00024,2]
[356741101,1743082238801,-1012.94912561,0.00024072,5]
[356741102,1743082238811,-241.87991902,0.00024525,2]
[356741103,1743082238820,-894.78268339,0.00024582,2]
[356741104,1743082238829,-151.0,0.00024582,2]
[356741105,1743082238839,-314.53,0.00024587,3]
[356741106,1743082238848,-157.26,0.00024587,3]
[356741107,1743082238857,-471.83,0.00024587,3]
[356741108,1743082238867,-241.879919,0.00024594,2]
[356741109,1743082238876,-340.65928552,0.00024594,2]
[356741110,1743082238885,-500.0,0.00024594,2]
[356741111,1743082238895,-500.0,0.00024594,2]
[356741112,1743082238904,-500.0,0.00024594,2]
[356741113,1743082238913,-500.0,0.00024594,2]
[356741114,1743082238924,-500.0,0.00024594,2]
[356741115,1743082238933,-500.0,0.00024594,2]
[356741116,1743082238942,-500.0,0.00024594,2]
[356741117,1743082238952,-264.74641784,0.00024594,2]
[356741118,1743082238961,-500.0,0.00024594,2]
[356741119,1743082238971,-249.73971852,0.00024596,2]
[356741120,1743082238981,-40630.1759259,0.00024596,3]
[356741121,1743082238990,-108141.20486381,0.00024597,2]
[356741122,1743082239006,-213858.79513619,0.00024597,2]
[356741123,1743082239015,-418.47884548,0.00024614,2]
[356741124,1743082239025,-1012.94912561,0.00024659,5]
[356741125,1743082239034,-241.879919,0.00024662,2]
[356741126,1743082239044,-1001.26724194,0.00024696,2]
[356741127,1743082239054,-1002.2305888,0.00024696,30]
[356741128,1743082239063,-241.879919,0.00024731,2]
[356741129,1743082239072,-241.879919,0.00024799,2]
[356741130,1743082239082,-1000.0,0.000248,7]
[356741131,1743082239091,-12458.93820146,0.00024811,2]
[356741132,1743082239100,-160.0,0.00024811,2]
[356741133,1743082239110,-150.17,0.0002487,2]
[356741134,1743082239119,-200.15497053,0.0002487,2]
[356741135,1743082239128,-150.17,0.0002487,2]
[356741136,1743082239137,-500.0,0.00024873,2]
[356741137,1743082239146,-637.80866703,0.00024873,2]
[356741138,1743082239156,-189.63016025,0.00024873,2]
[356741139,1743082239165,-564.10257544,0.00024873,2]
[356741140,1743082239174,-500.0,0.00024873,2]
[356741141,1743082239184,-537.85167297,0.00024873,2]
[356741142,1743082239193,-500.0,0.00024873,2]
[356741143,1743082239202,-500.0,0.00024873,2]
[356741144,1743082239212,-500.0,0.00024873,2]
[356741145,1743082239221,-500.0,0.00024873,2]
[356741146,1743082239230,-500.0,0.00024873,2]
[356741147,1743082239240,-98.33426432,0.00024873,2]
[356741153,1743082240905,-1605.52430516,0.00024497,2]
[356741154,1743082240916,-360.96388535,0.00024497,2]
[356741155,1743082240927,-401.66573568,0.00024873,2]
[356741156,1743082240936,-10.1645152,0.00024873,2]
[356741157,1743082240948,-489.8354848,0.00024873,2]
[356741158,1743082240957,-3.44707673,0.00024873,2]
[356741159,1743082240968,-496.55292327,0.00024873,2]
[356741160,1743082240977,-500.0,0.00024873,2]
[356741161,1743082240987,-506.61082789,0.00024873,2]
[356741162,1743082240996,-500.0,0.00024873,2]
[356741163,1743082241005,-126.68958082,0.00024873,2]
[356741188,1743082243845,-373.31041918,0.00024873,2]
[356741189,1743082243858,-440.5587766,0.0002489,2]
[356741190,1743082243867,-863.41556006,0.00024897,2]
[356741191,1743082243910,-99135.58443896,0.00024897,2]
[356741192,1743082243920,-194.76207051,0.00024899,2]
[356741193,1743082243930,-151.0,0.000249,7]
[356741195,1743082243940,-151.0,0.000249,7]
[356741196,1743082243949,-151.0,0.000249,7]
[356741197,1743082243959,-151.0,0.000249,7]
[356741198,1743082243969,-278.151799,0.000249,7]
[356741200,1743082243979,-278.151799,0.000249,7]
[356741202,1743082243989,-171.844492,0.000249,7]
[356741204,1743082243998,-623.4139313,0.000249,2]
[356741206,1743082244008,-171.844492,0.000249,7]
[356741208,1743082244017,-151.0,0.000249,7]
[356741209,1743082244027,-151.0,0.000249,7]
[356741210,1743082244037,-206.629,0.000249,8]
[356741211,1743082244047,-203.04388237,0.000249,8]
[356741212,1743082244056,-559.46557,0.000249,7]
[356741213,1743082244066,-151.0,0.000249,7]
[356741214,1743082244075,-157.046064,0.000249,7]
[356741215,1743082244086,-20.63246085,0.000249,7]
[356741240,1743082246670,-136.41360315,0.000249,7]
[356741241,1743082246679,-366.607454,0.000249,7]
[356741242,1743082246689,-287.14901,0.000249,7]
[356741243,1743082246698,-366.607454,0.000249,7]
[356741244,1743082246708,-287.14901,0.000249,7]
[356741245,1743082246718,-151.0,0.000249,7]
[356741246,1743082246727,-726.073272,0.000249,7]
[356741247,1743082246739,-726.073272,0.000249,7]
[356741248,1743082246748,-151.0,0.000249,7]
[356741249,1743082246758,-154.025261,0.000249,7]
[356741251,1743082246767,-1128.863994,0.000249,2]
[356741252,1743082246778,-1128.863994,0.000249,2]
[356741253,1743082246787,-2082.422897,0.000249,7]
[356741254,1743082246795,-2082.422897,0.000249,7]
[356741255,1743082246805,-151.0,0.000249,7]
[356741256,1743082246814,-244.433357,0.000249,7]
[356741257,1743082246823,-151.0,0.000249,7]
[356741258,1743082246833,-151.0,0.000249,7]
[356741259,1743082246842,-151.0,0.000249,7]
[356741260,1743082246852,-4195.509923,0.000249,7]
[356741261,1743082246861,-4195.509923,0.000249,7]
[356741262,1743082246870,-289.279622,0.000249,7]
[356741263,1743082246879,-289.279622,0.000249,7]
[356741264,1743082246888,-151.0,0.000249,7]
[356741265,1743082246898,-151.0,0.000249,7]
[356741266,1743082246907,-151.0,0.000249,7]
[356741267,1743082247016,-330.377366,0.000249,7]
[356741269,1743082247035,-330.377366,0.000249,7]
[356741270,1743082247044,-151.0,0.000249,7]
[356741271,1743082247054,-7877.13156577,0.000249,2]
[356741272,1743082247065,-6389.02791052,0.000249,2]
[356741273,1743082247087,-774.056639,0.000249,2]
[356741383,1743083431925,-170.099013,0.00010959,2]
[356741385,1743083431935,-691.680987,0.0002268,2]
[356741397,1743083432038,-23731.7427274,0.0002268,2]
[356741399,1743083432047,-5000.0,0.00023,2]
[356741401,1743083432056,-229.7976659,0.00023304,2]
[356741403,1743083432066,-1468.0,0.000234,14]
[356741405,1743083432075,-312.891741,0.00023486,2]
[356741407,1743083432085,-152.0,0.00023703,2]
[356741409,1743083432094,-834.95724862,0.00023767,2]
[356741411,1743083432103,-418.47884548,0.00023767,2]
[356741413,1743083432112,-300.0,0.00023768,2]
[356741415,1743083432122,-4687.9604015,0.00023769,2]
[356741417,1743083432131,-12458.93820146,0.00023769,2]
[356741419,1743083432140,-160.0,0.00023769,2]
[356741421,1743083432150,-278.76312087,0.00023799,2]
[356741423,1743083432160,-500.0,0.00023799,2]
[356741425,1743083432169,-500.0,0.00023799,2]
[356741427,1743083432178,-500.0,0.00023799,2]
[356741429,1743083432187,-500.0,0.00023799,2]
[356741431,1743083432198,-500.0,0.00023799,2]
[356741434,1743083432207,-500.0,0.00023799,2]
[356741435,1743083432216,-500.0,0.00023799,2]
[356741437,1743083432225,-500.0,0.00023799,2]
[356741439,1743083432234,-500.0,0.00023799,2]
[356741441,1743083432243,-500.0,0.00023799,2]
[356741443,1743083432252,-500.0,0.00023799,2]
[356741445,1743083432262,-500.0,0.00023799,2]
[356741447,1743083432272,-500.0,0.00023799,2]
[356741450,1743083432281,-500.0,0.00023799,2]
[356741451,1743083432291,-618.901,0.00023799,2]
[356741454,1743083432300,-500.0,0.00023799,2]
[356741456,1743083432309,-500.0,0.00023799,2]
[356741458,1743083432318,-500.0,0.00023799,2]
[356741460,1743083432328,-500.0,0.00023799,2]
[356741462,1743083432337,-500.0,0.00023799,2]
[356741464,1743083432347,-500.0,0.00023799,2]
[356741466,1743083432356,-500.0,0.00023799,2]
[356741468,1743083432366,-500.0,0.00023799,2]
[356741470,1743083432375,-500.0,0.00023799,2]
[356741472,1743083432384,-500.0,0.00023799,2]
[356741474,1743083432394,-500.0,0.00023799,2]
[356741476,1743083432403,-500.0,0.00023799,2]
[356741478,1743083432412,-500.0,0.00023799,2]
[356741480,1743083432421,-500.0,0.00023799,2]
[356741482,1743083432431,-500.0,0.00023799,2]
[356741484,1743083432440,-607.40849636,0.00023799,2]
[356741486,1743083432452,-500.0,0.00023799,2]
[356741488,1743083432462,-500.0,0.00023799,2]
[356741490,1743083432472,-500.0,0.00023799,2]
[356741492,1743083432482,-500.0,0.00023799,2]
[356741494,1743083432492,-500.0,0.00023799,2]
[356741496,1743083432502,-500.0,0.00023799,2]
[356741498,1743083432511,-500.0,0.00023799,2]
[356741500,1743083432521,-500.0,0.00023799,2]
[356741502,1743083432530,-5000.0,0.000238,2]
[356741504,1743083432539,-514.12683916,0.000238,2]
[356741506,1743083432548,-1910.80728896,0.000239,5]
[356741508,1743083432558,-500.0,0.00023959,2]
[356741511,1743083432568,-5352.59910242,0.0002399,2]
[356741513,1743083432577,-5054.40601628,0.00024,2]
[356741515,1743083432587,-500.0,0.000241,2]
[356741517,1743083432596,-1910.80728871,0.00024452,5]
[356741519,1743083432606,-810.4507139,0.00024658,5]
[356741521,1743083432615,-2050.82730476,0.00024745,2]
[356741523,1743083432625,-169.99,0.00024763,3]
[356741525,1743083432635,-504.56240213,0.00024773,2]
[356741527,1743083432644,-510.23281177,0.00024773,2]
[356741529,1743083432654,-500.0,0.00024773,2]
[356741531,1743083432663,-500.0,0.00024773,2]
[356741533,1743083432673,-500.0,0.00024773,2]
[356741535,1743083432682,-500.0,0.00024773,2]
[356741537,1743083432692,-432.44087765,0.00024773,2]
[356741539,1743083432703,-500.0,0.00024773,2]
[356741540,1743083432712,-500.0,0.00024773,2]
[356741542,1743083432722,-464.62188007,0.00024773,2]
[356741544,1743083432731,-500.0,0.00024773,2]
[356741547,1743083432741,-500.0,0.00024773,2]
[356741549,1743083432751,-500.98596614,0.00024773,2]
[356741551,1743083432760,-287.6221784,0.00024773,2]
[356741552,1743083432769,-500.0,0.00024773,2]
[356741554,1743083432779,-500.0,0.00024773,2]
[356741555,1743083432788,-502.52694202,0.00024773,2]
[356741557,1743083432798,-500.0,0.00024773,2]
[356741559,1743083432807,-501.7407927,0.00024773,2]
[356741562,1743083432818,-500.0,0.00024773,2]
[356741564,1743083432829,-500.0,0.00024773,2]
[356741566,1743083432838,-500.0,0.00024773,2]
[356741567,1743083432848,-500.0,0.00024773,2]
[356741568,1743083432858,-500.68207043,0.00024773,2]
[356741569,1743083432867,-500.0,0.00024773,2]
[356741570,1743083432876,-169.48648688,0.00024773,2]
[356741571,1743083432885,-500.0,0.00024773,2]
[356741572,1743083432895,-501.74498303,0.00024773,2]
[356741573,1743083432905,-500.0,0.00024773,2]
[356741574,1743083432914,-500.0,0.00024773,2]
[356741575,1743083432923,-339.99,0.0002478,3]
[356741576,1743083432932,-151.0,0.00024785,2]
[356741577,1743083432941,-302.0,0.00024785,2]
[356741578,1743083432951,-600.0,0.00024785,2]
[356741579,1743083432961,-1730.60629561,0.0002479,2]
[356741580,1743083432970,-470.69905034,0.0002479,2]
[356741581,1743083432979,-589840.496888,0.0002479,7]
[356741582,1743083432988,-151031.00452989,0.000248,2]
[356741583,1743083433001,-3462.89620636,0.000248,2]
[356741584,1743083433013,-381.92175847,0.000248,2]
[356741587,1743083433040,-69414.20535814,0.000248,2]
[356742068,1743083437742,-510.0,0.00024763,3]
[356742070,1743083437751,-543.21479634,0.000248,2]
[356742072,1743083437762,-2814.15845861,0.000248,2]
[356742082,1743083437857,-94352.59889219,0.000248,2]
[356742084,1743083437867,-495.0988118,0.00024802,2]
[356742086,1743083437876,-160.0,0.00024811,2]
[356742088,1743083437886,-509.19423908,0.00024873,2]
[356742090,1743083437895,-500.0,0.00024873,2]
[356742092,1743083437905,-500.0,0.00024873,2]
[356742094,1743083437914,-500.0,0.00024873,2]
[356742096,1743083437923,-500.0,0.00024873,2]
[356742098,1743083437932,-500.0,0.00024873,2]
[356742100,1743083437941,-500.0,0.00024873,2]
[356742102,1743083437951,-500.0,0.00024873,2]
[356742104,1743083437961,-500.0,0.00024873,2]
[356742106,1743083437970,-324.99651344,0.00024873,2]
[356742108,1743083437979,-500.0,0.00024873,2]
[356742110,1743083437988,-500.0,0.00024873,2]
[356742112,1743083437998,-500.0,0.00024873,2]
[356742114,1743083438007,-500.0,0.00024873,2]
[356742116,1743083438017,-500.0,0.00024873,2]
[356742118,1743083438027,-500.0,0.00024873,2]
[356742120,1743083438036,-500.0,0.00024873,2]
[356742122,1743083438046,-500.0,0.00024873,2]
[356742124,1743083438055,-500.0,0.00024873,2]
[356742126,1743083438065,-500.0,0.00024873,2]
[356742128,1743083438074,-500.0,0.00024873,2]
[356742130,1743083438083,-500.0,0.00024873,2]
[356742132,1743083438092,-500.0,0.00024873,2]
[356742134,1743083438101,-500.0,0.00024873,2]
[356742136,1743083438111,-500.0,0.00024873,2]
[356742138,1743083438121,-500.0,0.00024873,2]
[356742140,1743083438131,-500.0,0.00024873,2]
[356742142,1743083438140,-500.0,0.00024873,2]
[356742144,1743083438149,-500.0,0.00024873,2]
[356742146,1743083438158,-599.23558264,0.00024873,2]
[356742149,1743083438168,-500.0,0.00024873,2]
[356742151,1743083438177,-551.92692876,0.00024873,2]
[356742153,1743083438186,-500.0,0.00024873,2]
[356742155,1743083438195,-594.59784095,0.00024873,2]
[356742157,1743083438207,-1195.52236688,0.00024899,2]
[356742159,1743083438216,-151.0,0.000249,7]
[356742161,1743083438225,-191.755917,0.000249,7]
[356742163,1743083438234,-191.755917,0.000249,7]
[356742165,1743083438243,-151.0,0.000249,7]
[356742167,1743083438252,-151.0,0.000249,7]
[356742169,1743083438262,-151.0,0.000249,7]
[356742171,1743083438271,-199.42907723,0.000249,2]
[356742173,1743083438280,-348.046783,0.000249,7]
[356742175,1743083438289,-348.046783,0.000249,7]
[356742177,1743083438298,-78451.27314001,0.000249,2]
[356742371,1743083440181,-488.75872673,0.00023899,2]
[356742373,1743083440191,-3146.0759377,0.000249,2]
[356742660,1743083442995,-597.76118344,0.00024899,2]
[356742662,1743083443005,-861.57737728,0.000249,2]
[356742669,1743083443065,-590.28360709,0.000249,2]
[356742675,1743083443115,-519.47999996,0.000249,2]
[356742683,1743083443181,-1125.0,0.000249,2]
[356742782,1743083445937,-721.34761925,0.000249,2]
[356742802,1743083446123,-583.16413463,0.000249,2]
[356742805,1743083446134,-18230.51455491,0.000249,2]
[356742810,1743083446176,-2250.0,0.000249,2]
[356743614,1743084632286,-180.415023,0.00010959,2]
[356743615,1743084632296,-500.0,0.00022972,2]
[356743616,1743084632307,-172.594823,0.0002312,3]
[356743617,1743084632317,-152.130206,0.0002312,3]
[356743618,1743084632327,-504.0149141,0.00023467,2]
[356743619,1743084632337,-245.5147309,0.00023644,2]
[356743620,1743084632362,-67.3770111,0.00023644,2]
[356743621,1743084632373,-160.0,0.00023753,2]
[356743622,1743084632383,-492.0050339,0.00023764,2]
[356743623,1743084632392,-158.4629875,0.000246,2]
[356743624,1743084632403,-490.39942573,0.000246,2]
[356743625,1743084632412,-1265.42245637,0.000246,2]
[356743626,1743084632423,-2259.68761534,0.000246,2]
[356743627,1743084632432,-2571.86120024,0.000246,2]
[356743628,1743084632441,-418.47884548,0.00024649,2]
[356743629,1743084632451,-160.0,0.00024649,2]
[356743630,1743084632460,-467.26483142,0.0002468,2]
[356743631,1743084632470,-159.2,0.00024684,2]
[356743632,1743084632479,-151.0,0.00024685,2]
[356743633,1743084632488,-995.55160493,0.00024685,2]
[356743634,1743084632501,-600.0,0.00024685,2]
[356743635,1743084632510,-270.81,0.0002469,3]
[356743636,1743084632519,-812.47,0.0002469,3]
[356743637,1743084632528,-371.3241088,0.00024691,2]
[356743638,1743084632538,-490.39942573,0.00024693,2]
[356743639,1743084632548,-487.50406864,0.00024699,2]
[356743640,1743084632557,-614.7218317,0.00024699,2]
[356743641,1743084632567,-500.0,0.00024699,2]
[356743642,1743084632577,-500.0,0.00024699,2]
[356743643,1743084632586,-500.0,0.00024699,2]
[356743644,1743084632595,-290.989,0.00024699,2]
[356743645,1743084632604,-289.71205515,0.00024699,2]
[356743646,1743084632614,-500.0,0.00024699,2]
[356743647,1743084632623,-500.0,0.00024699,2]
[356743648,1743084632633,-500.0,0.00024699,2]
[356743649,1743084632643,-292.73638945,0.00024699,2]
[356743650,1743084632652,-500.0,0.00024699,2]
[356743651,1743084632661,-500.0,0.00024699,2]
[356743652,1743084632671,-500.0,0.00024699,2]
[356743653,1743084632680,-292.73638945,0.00024699,2]
[356743654,1743084632689,-500.0,0.00024699,2]
[356743655,1743084632698,-500.0,0.00024699,2]
[356743656,1743084632707,-500.0,0.00024699,2]
[356743657,1743084632717,-292.73638945,0.00024699,2]
[356743658,1743084632726,-500.0,0.00024699,2]
[356743659,1743084632736,-209004.84645204,0.000247,2]
[356743660,1743084632750,-100312.09683802,0.000247,2]
[356743661,1743084632762,-9601.43779092,0.000247,2]
[356743675,1743084637922,-3081.61891902,0.000247,2]
[356743676,1743084637931,-5000.0,0.000247,2]
[356743678,1743084637940,-773.60082395,0.0002474,2]
[356743680,1743084637950,-490.39942573,0.00024786,2]
[356743682,1743084637959,-500.0,0.00024797,2]
[356743684,1743084637969,-500.0,0.00024841,2]
[356743686,1743084637978,-490.39942573,0.00024878,2]
[356743688,1743084637987,-298.88059172,0.00024899,2]
[356743690,1743084637998,-74997.10081385,0.000249,2]
[356743692,1743084638009,-1000.0,0.000249,2]
[356743695,1743084638021,-27552.28403715,0.000249,2]
[356743697,1743084638030,-1825.0164125,0.000249,5]
[356743699,1743084638040,-490.39942573,0.00024971,2]
[356743701,1743084638050,-500.0,0.00025,2]
[356743703,1743084638060,-151.0,0.00025061,7]
[356743705,1743084638069,-230.0,0.00025061,7]
[356743707,1743084638079,-297.33963,0.00025061,7]
[356743709,1743084638088,-297.33963,0.00025061,7]
[356743711,1743084638098,-176.435911,0.00025061,7]
[356743713,1743084638108,-500.0,0.00025061,7]
[356743715,1743084638118,-183.4323,0.00025061,7]
[356743717,1743084638128,-150.77218128,0.00025061,7]
[356743719,1743084638139,-150.17,0.00025061,7]
[356743721,1743084638148,-500.0,0.00025061,7]
[356743723,1743084638158,-500.0,0.00025061,7]
[356743725,1743084638168,-500.0,0.00025061,7]
[356743727,1743084638177,-160.0,0.00025061,7]
[356743729,1743084638187,-156.9752793,0.00025061,7]
[356743731,1743084638196,-187.74860332,0.00025061,7]
[356743733,1743084638205,-500.0,0.00025061,2]
[356743735,1743084638214,-221.88222086,0.00025061,7]
[356743737,1743084638228,-500.0,0.00025061,7]
[356743739,1743084638237,-500.0,0.00025061,7]
[356743741,1743084638248,-200.0,0.00025061,7]
[356743743,1743084638258,-500.0,0.00025061,7]
[356743745,1743084638269,-500.0,0.00025061,7]
[356743747,1743084638278,-609.0,0.00025061,7]
[356743749,1743084638287,-500.0,0.00025061,7]
[356743751,1743084638298,-150.17,0.00025061,2]
[356743753,1743084638308,-500.0,0.00025061,7]
[356743755,1743084638318,-150.17,0.00025061,2]
[356743757,1743084638327,-500.0,0.00025061,7]
[356743759,1743084638337,-150.17,0.00025061,7]
[356743761,1743084638347,-200.53632234,0.00025061,7]
[356743763,1743084638356,-500.0,0.00025061,7]
[356743765,1743084638367,-150.17,0.00025061,2]
[356743767,1743084638376,-500.0,0.00025061,7]
[356743769,1743084638386,-500.0,0.00025061,7]
[356743771,1743084638395,-591.40412144,0.00025068,2]
[356743773,1743084638404,-153.666091,0.0002508,7]
[356743775,1743084638414,-151.0,0.0002508,7]
[356743777,1743084638423,-297.33963,0.0002508,7]
[356743779,1743084638433,-297.33963,0.0002508,7]
[356743780,1743084638443,-151.0,0.0002509,7]
[356743781,1743084638452,-297.33963,0.0002509,7]
[356743782,1743084638462,-297.33963,0.0002509,7]
[356743783,1743084638471,-17258.2308086,0.0002509,2]
[356743784,1743084638481,-2000.0,0.000251,2]
[356743785,1743084638491,-151.0,0.0002518,7]
[356743786,1743084638504,-151.0,0.000252,7]
[356743787,1743084638513,-297.33963,0.000252,7]
[356743788,1743084638523,-297.33963,0.000252,7]
[356743789,1743084638532,-500.0,0.00025218,2]
[356743790,1743084638542,-156.587,0.00025233,2]
[356743791,1743084638551,-151.0,0.00025239,7]
[356743792,1743084638560,-396.12944399,0.00025305,2]
[356743793,1743084638570,-372.38227502,0.00025305,2]
[356743794,1743084638579,-151.0,0.00025314,7]
[356743795,1743084638589,-297.33963,0.00025314,7]
[356743796,1743084638598,-297.33963,0.00025314,7]
[356743797,1743084638607,-151.0,0.00025314,7]
[356743798,1743084638617,-151.0,0.00025314,7]
[356743799,1743084638627,-322.277824,0.00025314,7]
[356743800,1743084638636,-151.0,0.00025314,7]
[356743801,1743084638646,-151.0,0.00025314,7]
[356743802,1743084638655,-322.277824,0.00025314,7]
[356743803,1743084638664,-151.0,0.00025314,7]
[356743804,1743084638673,-363.204372,0.00025314,7]
[356743805,1743084638682,-363.204372,0.00025314,7]
[356743806,1743084638691,-154.660042,0.00025314,7]
[356743807,1743084638700,-154.660042,0.00025314,7]
[356743808,1743084638709,-151.0,0.00025314,7]
[356743809,1743084638719,-151.0,0.00025314,7]
[356743810,1743084638728,-151.0,0.00025314,7]
[356743811,1743084638737,-151.0,0.00025314,7]
[356743812,1743084638749,-151.0,0.00025314,7]
[356743813,1743084638758,-531.492292,0.00025314,7]
[356743814,1743084638768,-531.492292,0.00025314,7]
[356743815,1743084638777,-151.0,0.00025314,7]
[356743816,1743084638787,-151.0,0.00025314,7]
[356743817,1743084638796,-500.0,0.00025326,2]
[356743818,1743084638806,-151.0,0.00025334,7]
[356743819,1743084638815,-180.855909,0.00025334,7]
[356743820,1743084638824,-297.33963,0.00025334,7]
[356743821,1743084638834,-297.33963,0.00025334,7]
[356743822,1743084638843,-172.580326,0.00025334,7]
[356743823,1743084638853,-172.580326,0.00025334,7]
[356743824,1743084638862,-151.0,0.00025334,7]
[356743825,1743084638871,-151.0,0.00025334,7]
[356743826,1743084638881,-151.0,0.00025334,7]
[356743827,1743084638891,-151.0,0.00025334,7]
[356743828,1743084638900,-151.0,0.00025334,7]
[356743829,1743084638909,-151.0,0.00025334,7]
[356743830,1743084638919,-151.0,0.00025334,7]
[356743831,1743084638928,-151.0,0.00025334,7]
[356743832,1743084638938,-250.336619,0.00025334,7]
[356743833,1743084638948,-250.336619,0.00025334,7]
[356743834,1743084638958,-337.496708,0.00025334,7]
[356743835,1743084638968,-337.496708,0.00025334,7]
[356743836,1743084638977,-151.0,0.00025334,7]
[356743837,1743084638987,-151.0,0.00025334,7]
[356743838,1743084638996,-321.545008,0.00025334,7]
[356743839,1743084639007,-321.545008,0.00025334,7]
[356743840,1743084639016,-1874.180608,0.00025334,7]
[356743841,1743084639025,-1874.180608,0.00025334,7]
[356743842,1743084639035,-151.0,0.00025334,7]
[356743843,1743084639045,-151.0,0.00025334,7]
[356743844,1743084639140,-502.5575447,0.00025335,7]
[356743845,1743084639150,-150.17,0.00025335,7]
[356743846,1743084639159,-500.0,0.00025335,7]
[356743847,1743084639169,-606.06358459,0.00025335,7]
[356743848,1743084639178,-500.0,0.00025335,7]
[356743849,1743084639187,-774.65128182,0.00025335,2]
[356743850,1743084639197,-500.0,0.00025335,7]
[356743851,1743084639206,-500.0,0.00025335,7]
[356743852,1743084639216,-200.0,0.00025335,7]
[356743853,1743084639228,-500.0,0.00025335,7]
[356743854,1743084639238,-500.0,0.00025335,7]
[356743855,1743084639248,-609.0,0.00025335,7]
[356743856,1743084639258,-500.0,0.00025335,7]
[356743857,1743084639267,-811.8701502,0.00025335,7]
[356743858,1743084639278,-500.0,0.00025335,7]
[356743859,1743084639287,-500.0,0.00025335,7]
[356743860,1743084639297,-150.17,0.00025335,7]
[356743861,1743084639307,-909.47247206,0.00025335,7]
[356743862,1743084639316,-500.0,0.00025335,7]
[356743863,1743084639325,-500.0,0.00025335,7]
[356743864,1743084639335,-151.0,0.00025335,7]
[356743865,1743084639344,-297.33963,0.00025335,7]
[356743866,1743084639354,-297.33963,0.00025335,7]
[356743867,1743084639364,-151.0,0.00025335,7]
[356743868,1743084639374,-151.0,0.00025335,7]